[Event "Titled Tuesday Blitz December 06 Early 2022"]
[White "Ohanyan, Emin"]
[Black "Lenderman, Aleksandr"]
[WhiteFideId "13312022"]
[BlackFideId "2021285"]
[WhiteElo "2352"]
[BlackElo "2607"]
[Result "1/2-1/2"]
[Round "10"]
[TimeControl "180+1"]
[Date "2022.12.06"]
[WhiteClock "0:00:21"]
[BlackClock "0:00:20"]

1. e4 {[%clk 0:03:00]}  e6 {[%clk 0:03:00]} 2. d4 {[%clk 0:03:00]}  d5 {[%clk 0:03:00]} 3. Nc3 {[%clk 0:03:00]}  dxe4 {[%clk 0:03:00]} 4. Nxe4 {[%clk 0:03:01]}  Nd7 {[%clk 0:03:01]} 5. Nf3 {[%clk 0:03:02]}  Ngf6 {[%clk 0:03:01]} 6. Bd3 {[%clk 0:03:02]}  c5 {[%clk 0:03:01]} 7. O-O {[%clk 0:02:50]}  Nxe4 {[%clk 0:02:57]} 8. Bxe4 {[%clk 0:02:50]}  Nf6 {[%clk 0:02:58]} 9. Bg5 {[%clk 0:02:50]}  Be7 {[%clk 0:02:54]} 10. Bxf6 {[%clk 0:02:49]}  Bxf6 {[%clk 0:02:54]} 11. dxc5 {[%clk 0:02:33]}  Qc7 {[%clk 0:02:54]} 12. c3 {[%clk 0:02:29]}  Qxc5 {[%clk 0:02:54]} 13. Qc2 {[%clk 0:02:17]}  Bd7 {[%clk 0:02:52]} 14. Bxb7 {[%clk 0:02:13]}  Rb8 {[%clk 0:02:52]} 15. Be4 {[%clk 0:02:14]}  Bb5 {[%clk 0:02:43]} 16. Rfe1 {[%clk 0:02:12]}  h6 {[%clk 0:02:41]} 17. a4 {[%clk 0:01:56]}  Bc4 {[%clk 0:02:38]} 18. b4 {[%clk 0:01:51]}  Qc7 {[%clk 0:02:38]} 19. Rac1 {[%clk 0:00:55]}  O-O {[%clk 0:02:36]} 20. Nd2 {[%clk 0:00:56]}  Rfc8 {[%clk 0:02:27]} 21. b5 {[%clk 0:00:49]}  a6 {[%clk 0:02:27]} 22. Nxc4 {[%clk 0:00:44]}  Qxc4 {[%clk 0:02:27]} 23. Bc6 {[%clk 0:00:45]}  axb5 {[%clk 0:02:22]} 24. axb5 {[%clk 0:00:46]}  Qc5 {[%clk 0:02:19]} 25. c4 {[%clk 0:00:45]}  Bd4 {[%clk 0:02:17]} 26. g3 {[%clk 0:00:44]}  Rc7 {[%clk 0:02:17]} 27. Kg2 {[%clk 0:00:43]}  Rxc6 {[%clk 0:02:14]} 28. bxc6 {[%clk 0:00:44]}  Rb2 {[%clk 0:02:15]} 29. Qe4 {[%clk 0:00:37]}  Rxf2+ {[%clk 0:02:02]} 30. Kh1 {[%clk 0:00:37]}  e5 {[%clk 0:01:52]} 31. Qd5 {[%clk 0:00:31]}  Qa7 {[%clk 0:01:48]} 32. Rf1 {[%clk 0:00:21]}  Re2 {[%clk 0:01:37]} 33. Qd7 {[%clk 0:00:16]}  Qa2 {[%clk 0:01:31]} 34. Qxf7+ {[%clk 0:00:16]}  Kh7 {[%clk 0:01:32]} 35. Qf5+ {[%clk 0:00:17]}  Kh8 {[%clk 0:01:32]} 36. Qf8+ {[%clk 0:00:13]}  Kh7 {[%clk 0:01:33]} 37. Qf5+ {[%clk 0:00:14]}  Kh8 {[%clk 0:01:33]} 38. Qh5 {[%clk 0:00:11]}  Bf2 {[%clk 0:01:14]} 39. Rcd1 {[%clk 0:00:02]}  Qc2 {[%clk 0:01:00]} 40. Qf3 {[%clk 0:00:01]}  Bd4 {[%clk 0:00:21]} 41. Qf8+ {[%clk 0:00:02]}  Kh7 {[%clk 0:00:22]} 42. Qf5+ {[%clk 0:00:02]}  Qxf5 {[%clk 0:00:23]} 43. Rxf5 {[%clk 0:00:03]}  Rc2 {[%clk 0:00:23]} 44. Rxd4 {[%clk 0:00:01]}  exd4 {[%clk 0:00:23]} 45. Rc5 {[%clk 0:00:02]}  d3 {[%clk 0:00:23]} 46. c7 {[%clk 0:00:01]}  d2 {[%clk 0:00:23]} 47. Rd5 {[%clk 0:00:02]}  Rxc4 {[%clk 0:00:19]} 48. Rxd2 {[%clk 0:00:02]}  Rxc7 {[%clk 0:00:20]} 49. Kg2 {[%clk 0:00:03]}  Rc3 {[%clk 0:00:19]} 50. h4 {[%clk 0:00:03]}  h5 {[%clk 0:00:20]} 51. Kh3 {[%clk 0:00:03]}  Kg6 {[%clk 0:00:20]} 52. Rd5 {[%clk 0:00:04]}  Kh6 {[%clk 0:00:20]} 53. Rd6+ {[%clk 0:00:05]}  g6 {[%clk 0:00:21]} 54. Rd8 {[%clk 0:00:06]}  Kg7 {[%clk 0:00:21]} 55. Rd7+ {[%clk 0:00:05]}  Kf6 {[%clk 0:00:21]} 56. Rd6+ {[%clk 0:00:05]}  Kf5 {[%clk 0:00:22]} 57. Kg2 {[%clk 0:00:05]}  Re3 {[%clk 0:00:21]} 58. Kf2 {[%clk 0:00:05]}  Ra3 {[%clk 0:00:20]} 59. Rb6 {[%clk 0:00:04]}  Ra5 {[%clk 0:00:20]} 60. Kf3 {[%clk 0:00:04]}  Re5 {[%clk 0:00:19]} 61. Rb8 {[%clk 0:00:04]}  Kf6 {[%clk 0:00:19]} 62. Kf4 {[%clk 0:00:04]}  Rf5+ {[%clk 0:00:19]} 63. Ke4 {[%clk 0:00:05]}  Kg7 {[%clk 0:00:18]} 64. Rb7+ {[%clk 0:00:05]}  Kh6 {[%clk 0:00:19]} 65. Rb8 {[%clk 0:00:06]}  Rf1 {[%clk 0:00:19]} 66. Rh8+ {[%clk 0:00:06]}  Kg7 {[%clk 0:00:19]} 67. Ra8 {[%clk 0:00:07]}  Rg1 {[%clk 0:00:20]} 68. Kf4 {[%clk 0:00:07]}  Rf1+ {[%clk 0:00:20]} 69. Ke4 {[%clk 0:00:08]}  Rb1 {[%clk 0:00:20]} 70. Kf3 {[%clk 0:00:08]}  Rb3+ {[%clk 0:00:20]} 71. Kg2 {[%clk 0:00:08]}  Rb2+ {[%clk 0:00:21]} 72. Kh3 {[%clk 0:00:09]}  Rb3 {[%clk 0:00:21]} 73. Ra4 {[%clk 0:00:09]}  Kf6 {[%clk 0:00:21]} 74. Rf4+ {[%clk 0:00:10]}  Ke5 {[%clk 0:00:20]} 75. Rf1 {[%clk 0:00:10]}  Rb4 {[%clk 0:00:18]} 76. Rf8 {[%clk 0:00:11]}  Ke6 {[%clk 0:00:18]} 77. Kg2 {[%clk 0:00:10]}  Rb2+ {[%clk 0:00:17]} 78. Kf3 {[%clk 0:00:11]}  Rb3+ {[%clk 0:00:18]} 79. Kf4 {[%clk 0:00:11]}  Rb4+ {[%clk 0:00:19]} 80. Kf3 {[%clk 0:00:11]}  Rb3+ {[%clk 0:00:19]} 81. Kf4 {[%clk 0:00:12]}  Rb4+ {[%clk 0:00:20]} 82. Ke3 {[%clk 0:00:12]}  Rb3+ {[%clk 0:00:20]} 83. Kf2 {[%clk 0:00:13]}  Rb2+ {[%clk 0:00:20]} 84. Kf1 {[%clk 0:00:14]}  Rb1+ {[%clk 0:00:21]} 85. Kg2 {[%clk 0:00:14]}  Rb2+ {[%clk 0:00:21]} 86. Kh3 {[%clk 0:00:15]}  Rb3 {[%clk 0:00:22]} 87. Rf4 {[%clk 0:00:15]}  Rb5 {[%clk 0:00:21]} 88. Rf3 {[%clk 0:00:15]}  Rf5 {[%clk 0:00:22]} 89. Ra3 {[%clk 0:00:15]}  Kf6 {[%clk 0:00:22]} 90. g4 {[%clk 0:00:16]}  hxg4+ {[%clk 0:00:17]} 91. Kxg4 {[%clk 0:00:17]}  Rb5 {[%clk 0:00:17]} 92. Ra6+ {[%clk 0:00:17]}  Kg7 {[%clk 0:00:18]} 93. Ra4 {[%clk 0:00:18]}  Kh6 {[%clk 0:00:18]} 94. Ra8 {[%clk 0:00:18]}  Rb4+ {[%clk 0:00:18]} 95. Kg3 {[%clk 0:00:19]}  Rb3+ {[%clk 0:00:18]} 96. Kf4 {[%clk 0:00:19]}  Rb4+ {[%clk 0:00:19]} 97. Kg3 {[%clk 0:00:20]}  Rb3+ {[%clk 0:00:19]} 98. Kf4 {[%clk 0:00:21]}  Rb4+ {[%clk 0:00:20]} 99. Kg3 {[%clk 0:00:21]} 1/2-1/2


[Site "https://www.chess.com"]

[Event "Titled Tuesday Blitz December 06 Early 2022"]
[White "Osinovsky, Stepan"]
[Black "Pajeken, Jakob Leon"]
[WhiteFideId "4157354"]
[BlackFideId "12942839"]
[WhiteElo "2222"]
[BlackElo "2414"]
[Result "1/2-1/2"]
[Round "10"]
[TimeControl "180+1"]
[Date "2022.12.07"]
[WhiteClock "0:00:07"]
[BlackClock "0:01:24"]

1. e3 {[%clk 0:02:13]}  Nf6 {[%clk 0:02:59]} 2. g3 {[%clk 0:02:12]}  d5 {[%clk 0:02:57]} 3. Bg2 {[%clk 0:02:13]}  g6 {[%clk 0:02:58]} 4. Nf3 {[%clk 0:02:12]}  Bg7 {[%clk 0:02:58]} 5. O-O {[%clk 0:02:12]}  O-O {[%clk 0:02:58]} 6. b3 {[%clk 0:02:10]}  c5 {[%clk 0:02:54]} 7. Bb2 {[%clk 0:02:10]}  Nc6 {[%clk 0:02:54]} 8. c4 {[%clk 0:02:04]}  d4 {[%clk 0:02:53]} 9. exd4 {[%clk 0:02:03]}  cxd4 {[%clk 0:02:54]} 10. Re1 {[%clk 0:02:03]}  Re8 {[%clk 0:02:52]} 11. d3 {[%clk 0:01:38]}  e5 {[%clk 0:02:51]} 12. Nbd2 {[%clk 0:01:38]}  a5 {[%clk 0:02:50]} 13. a3 {[%clk 0:01:33]}  Nd7 {[%clk 0:02:48]} 14. Ne4 {[%clk 0:01:32]}  Bf8 {[%clk 0:02:44]} 15. c5 {[%clk 0:01:21]}  Nxc5 {[%clk 0:02:43]} 16. Nxc5 {[%clk 0:01:17]}  Bxc5 {[%clk 0:02:44]} 17. Bc1 {[%clk 0:00:57]}  f6 {[%clk 0:02:41]} 18. Nd2 {[%clk 0:00:47]}  Be6 {[%clk 0:02:39]} 19. Ne4 {[%clk 0:00:40]}  Be7 {[%clk 0:02:37]} 20. h4 {[%clk 0:00:39]}  Qb6 {[%clk 0:02:35]} 21. Rb1 {[%clk 0:00:38]}  Rad8 {[%clk 0:02:28]} 22. Qf3 {[%clk 0:00:19]}  Rf8 {[%clk 0:02:27]} 23. Qe2 {[%clk 0:00:19]}  Na7 {[%clk 0:02:26]} 24. b4 {[%clk 0:00:18]}  a4 {[%clk 0:02:19]} 25. b5 {[%clk 0:00:15]}  Rd5 {[%clk 0:02:11]} 26. Ng5 {[%clk 0:00:11]}  fxg5 {[%clk 0:02:10]} 27. Bxd5 {[%clk 0:00:11]}  Bxd5 {[%clk 0:02:10]} 28. Qxe5 {[%clk 0:00:11]}  Ba2 {[%clk 0:02:06]} 29. Qxe7 {[%clk 0:00:07]}  Bxb1 {[%clk 0:02:02]} 30. Bxg5 {[%clk 0:00:08]}  Bxd3 {[%clk 0:01:57]} 31. Re6 {[%clk 0:00:07]}  Qxb5 {[%clk 0:01:54]} 32. Bf6 {[%clk 0:00:06]}  Rf7 {[%clk 0:01:32]} 33. Qd8+ {[%clk 0:00:06]}  Rf8 {[%clk 0:01:32]} 34. Qe7 {[%clk 0:00:07]}  Rf7 {[%clk 0:01:24]} 35. Qd8+ {[%clk 0:00:07]}  Rf8 {[%clk 0:01:24]} 36. Qe7 {[%clk 0:00:07]} 1/2-1/2


[Site "https://www.chess.com"]

[Event "Titled Tuesday Blitz December 06 Early 2022"]
[White "Palacio,Igor Da Paz"]
[Black "Ciuffoletti, Paolo"]
[WhiteFideId "2121140"]
[BlackFideId "807630"]
[WhiteElo "2126"]
[BlackElo "2143"]
[Result "0-1"]
[Round "10"]
[TimeControl "180+1"]
[Date "2022.12.07"]
[WhiteClock "0:00:01"]
[BlackClock "0:00:27"]

1. e4 {[%clk 0:02:59]}  c5 {[%clk 0:02:59]} 2. Nc3 {[%clk 0:02:59]}  Nc6 {[%clk 0:02:59]} 3. g3 {[%clk 0:02:59]}  g6 {[%clk 0:02:59]} 4. Bg2 {[%clk 0:02:58]}  Bg7 {[%clk 0:02:59]} 5. d3 {[%clk 0:02:59]}  d6 {[%clk 0:02:59]} 6. f4 {[%clk 0:02:58]}  e6 {[%clk 0:02:48]} 7. Nf3 {[%clk 0:02:57]}  Nge7 {[%clk 0:02:47]} 8. Be3 {[%clk 0:02:54]}  Rb8 {[%clk 0:02:43]} 9. O-O {[%clk 0:02:54]}  b5 {[%clk 0:02:40]} 10. a3 {[%clk 0:02:51]}  a5 {[%clk 0:02:39]} 11. Rb1 {[%clk 0:02:51]}  b4 {[%clk 0:02:38]} 12. axb4 {[%clk 0:02:50]}  axb4 {[%clk 0:02:38]} 13. Ne2 {[%clk 0:02:51]}  Ba6 {[%clk 0:02:29]} 14. Nd2 {[%clk 0:02:47]}  Nd4 {[%clk 0:02:24]} 15. Nc4 {[%clk 0:02:22]}  O-O {[%clk 0:02:10]} 16. Bf2 {[%clk 0:02:00]}  Nec6 {[%clk 0:01:47]} 17. Nxd4 {[%clk 0:01:54]}  Nxd4 {[%clk 0:01:44]} 18. h4 {[%clk 0:01:37]}  h5 {[%clk 0:01:27]} 19. Kh2 {[%clk 0:01:30]}  d5 {[%clk 0:01:20]} 20. Ne5 {[%clk 0:01:26]}  Qc7 {[%clk 0:01:11]} 21. Be3 {[%clk 0:01:18]}  Nc6 {[%clk 0:00:59]} 22. Nxc6 {[%clk 0:01:02]}  Qxc6 {[%clk 0:00:58]} 23. Qf3 {[%clk 0:00:56]}  b3 {[%clk 0:00:54]} 24. exd5 {[%clk 0:00:50]}  Qxd5 {[%clk 0:00:45]} 25. Qxd5 {[%clk 0:00:46]}  exd5 {[%clk 0:00:45]} 26. c4 {[%clk 0:00:18]}  dxc4 {[%clk 0:00:43]} 27. dxc4 {[%clk 0:00:18]}  Bxc4 {[%clk 0:00:42]} 28. Bxc5 {[%clk 0:00:14]}  Bxf1 {[%clk 0:00:41]} 29. Bxf8 {[%clk 0:00:14]}  Bd3 {[%clk 0:00:38]} 30. Rd1 {[%clk 0:00:10]}  Bc2 {[%clk 0:00:38]} 31. Bd6 {[%clk 0:00:08]}  Bxd1 {[%clk 0:00:35]} 32. Bxb8 {[%clk 0:00:08]}  Bxb2 {[%clk 0:00:35]} 33. Bd5 {[%clk 0:00:05]}  Bc3 {[%clk 0:00:35]} 34. Bd6 {[%clk 0:00:02]}  b2 {[%clk 0:00:35]} 35. Be4 {[%clk 0:00:02]}  Bb3 {[%clk 0:00:31]} 36. Bb1 {[%clk 0:00:03]}  Bd5 {[%clk 0:00:31]} 37. Kg1 {[%clk 0:00:02]}  f5 {[%clk 0:00:30]} 38. Kf1 {[%clk 0:00:02]}  Be4 {[%clk 0:00:30]} 39. Ba2+ {[%clk 0:00:01]}  Kg7 {[%clk 0:00:27]} 0-1


[Site "https://www.chess.com"]

[Event "Titled Tuesday Blitz December 06 Early 2022"]
[White "Salman, Pavel"]
[Black "Liu, Xiangyi"]
[WhiteFideId "24153753"]
[BlackFideId "8605718"]
[WhiteElo "2187"]
[BlackElo "2323"]
[Result "0-1"]
[Round "10"]
[TimeControl "180+1"]
[Date "2022.12.06"]
[WhiteClock "0:00:02"]
[BlackClock "0:00:25"]

1. Nf3 {[%clk 0:03:00]}  Nf6 {[%clk 0:02:59]} 2. g3 {[%clk 0:03:00]}  g6 {[%clk 0:02:59]} 3. Bg2 {[%clk 0:03:00]}  Bg7 {[%clk 0:03:00]} 4. O-O {[%clk 0:03:01]}  O-O {[%clk 0:03:01]} 5. d3 {[%clk 0:03:01]}  d5 {[%clk 0:03:00]} 6. Nbd2 {[%clk 0:03:02]}  c5 {[%clk 0:03:00]} 7. e4 {[%clk 0:03:02]}  Nc6 {[%clk 0:03:00]} 8. Re1 {[%clk 0:03:02]}  d4 {[%clk 0:02:48]} 9. a4 {[%clk 0:03:01]}  e5 {[%clk 0:02:37]} 10. Nc4 {[%clk 0:03:00]}  Re8 {[%clk 0:02:36]} 11. Bg5 {[%clk 0:02:52]}  h6 {[%clk 0:02:35]} 12. Bd2 {[%clk 0:02:51]}  Qc7 {[%clk 0:02:34]} 13. Qc1 {[%clk 0:02:51]}  Kh7 {[%clk 0:02:34]} 14. a5 {[%clk 0:02:45]}  Be6 {[%clk 0:02:31]} 15. b3 {[%clk 0:02:44]}  b5 {[%clk 0:02:23]} 16. axb6 {[%clk 0:02:35]}  axb6 {[%clk 0:02:23]} 17. Rxa8 {[%clk 0:02:36]}  Rxa8 {[%clk 0:02:24]} 18. Nh4 {[%clk 0:02:15]}  b5 {[%clk 0:02:15]} 19. Nb2 {[%clk 0:02:15]}  Nb4 {[%clk 0:01:57]} 20. f4 {[%clk 0:02:09]}  Na2 {[%clk 0:01:50]} 21. Qd1 {[%clk 0:01:56]}  Nc3 {[%clk 0:01:18]} 22. Qf3 {[%clk 0:01:53]}  Ra2 {[%clk 0:01:18]} 23. Bc1 {[%clk 0:01:52]}  Qa5 {[%clk 0:00:55]} 24. f5 {[%clk 0:01:05]}  Bd7 {[%clk 0:00:51]} 25. Rf1 {[%clk 0:01:02]}  g5 {[%clk 0:00:47]} 26. h3 {[%clk 0:00:32]}  Ra1 {[%clk 0:00:35]} 27. Kh2 {[%clk 0:00:15]}  Qa2 {[%clk 0:00:32]} 28. Nd1 {[%clk 0:00:06]}  Qxc2 {[%clk 0:00:27]} 29. Nxc3 {[%clk 0:00:05]}  Qxc3 {[%clk 0:00:26]} 30. Qe2 {[%clk 0:00:03]}  Rxc1 {[%clk 0:00:25]} 31. Rd1 {[%clk 0:00:02]}  Rxd1 {[%clk 0:00:25]} 0-1


[Site "https://www.chess.com"]

[Event "Titled Tuesday Blitz December 06 Early 2022"]
[White "Saravana, Krishnan P."]
[Black "Quinones Garcia, Santiago"]
[WhiteFideId "5018382"]
[BlackFideId "4408497"]
[WhiteElo "2190"]
[BlackElo "2249"]
[Result "0-1"]
[Round "10"]
[TimeControl "180+1"]
[Date "2022.12.07"]
[WhiteClock "0:00:02"]
[BlackClock "0:00:19"]

1. Nf3 {[%clk 0:02:54]}  d5 {[%clk 0:03:00]} 2. g3 {[%clk 0:02:46]}  c6 {[%clk 0:03:00]} 3. Bg2 {[%clk 0:02:44]}  Nf6 {[%clk 0:03:00]} 4. O-O {[%clk 0:02:43]}  Bg4 {[%clk 0:03:00]} 5. c4 {[%clk 0:02:42]}  Nbd7 {[%clk 0:03:00]} 6. d3 {[%clk 0:02:42]}  e5 {[%clk 0:02:59]} 7. Nc3 {[%clk 0:02:42]}  Bd6 {[%clk 0:02:57]} 8. cxd5 {[%clk 0:02:42]}  cxd5 {[%clk 0:02:57]} 9. h3 {[%clk 0:02:40]}  Bh5 {[%clk 0:02:57]} 10. e4 {[%clk 0:02:34]}  d4 {[%clk 0:02:53]} 11. Nb5 {[%clk 0:02:33]}  Be7 {[%clk 0:02:51]} 12. a4 {[%clk 0:02:28]}  O-O {[%clk 0:02:46]} 13. Bd2 {[%clk 0:02:27]}  a6 {[%clk 0:02:45]} 14. Na3 {[%clk 0:02:27]}  Rc8 {[%clk 0:02:43]} 15. a5 {[%clk 0:02:17]}  Nc5 {[%clk 0:02:39]} 16. Bb4 {[%clk 0:02:13]}  Nfd7 {[%clk 0:02:27]} 17. g4 {[%clk 0:02:11]}  Bg6 {[%clk 0:02:26]} 18. Re1 {[%clk 0:02:03]}  Bd6 {[%clk 0:02:09]} 19. Nc4 {[%clk 0:02:00]}  Qe7 {[%clk 0:01:57]} 20. Nxd6 {[%clk 0:01:57]}  Qxd6 {[%clk 0:01:56]} 21. Rc1 {[%clk 0:01:53]}  Rfe8 {[%clk 0:01:55]} 22. Re2 {[%clk 0:01:46]}  Qb8 {[%clk 0:01:29]} 23. Rec2 {[%clk 0:01:38]}  Ne6 {[%clk 0:01:26]} 24. Bd6 {[%clk 0:01:35]}  Qxd6 {[%clk 0:01:09]} 25. Rxc8 {[%clk 0:01:34]}  Rxc8 {[%clk 0:01:10]} 26. Rxc8+ {[%clk 0:01:33]}  Ndf8 {[%clk 0:01:10]} 27. Qb3 {[%clk 0:01:15]}  Qd7 {[%clk 0:01:02]} 28. Rb8 {[%clk 0:01:01]}  Qc7 {[%clk 0:00:49]} 29. Rxb7 {[%clk 0:00:44]}  Qc1+ {[%clk 0:00:49]} 30. Bf1 {[%clk 0:00:40]}  Nc5 {[%clk 0:00:48]} 31. Qb4 {[%clk 0:00:19]}  h5 {[%clk 0:00:20]} 32. Rc7 {[%clk 0:00:18]}  Nfe6 {[%clk 0:00:19]} 33. Rc8+ {[%clk 0:00:17]}  Kh7 {[%clk 0:00:20]} 34. gxh5 {[%clk 0:00:17]}  Bxh5 {[%clk 0:00:20]} 35. Nxe5 {[%clk 0:00:16]}  Be2 {[%clk 0:00:19]} 36. Kh2 {[%clk 0:00:01]}  Qxf1 {[%clk 0:00:19]} 37. Ng4 {[%clk 0:00:01]}  Bxg4 {[%clk 0:00:19]} 38. hxg4 {[%clk 0:00:01]}  Qxf2+ {[%clk 0:00:19]} 39. Kh1 {[%clk 0:00:02]}  Nf4 {[%clk 0:00:19]} 0-1


[Site "https://www.chess.com"]

[Event "Titled Tuesday Blitz December 06 Early 2022"]
[White "Skibbe, Willi"]
[Black "Lehtosaari, Mauri"]
[WhiteFideId "4682190"]
[BlackFideId "501999"]
[WhiteElo "2379"]
[BlackElo "2496"]
[Result "1/2-1/2"]
[Round "10"]
[TimeControl "180+1"]
[Date "2022.12.07"]
[WhiteClock "0:00:19"]
[BlackClock "0:00:12"]

1. f4 {[%clk 0:03:00]}  d5 {[%clk 0:02:55]} 2. Nf3 {[%clk 0:02:59]}  Nf6 {[%clk 0:02:54]} 3. g3 {[%clk 0:02:59]}  Bf5 {[%clk 0:02:54]} 4. d3 {[%clk 0:02:58]}  e6 {[%clk 0:02:54]} 5. Bg2 {[%clk 0:02:58]}  h6 {[%clk 0:02:55]} 6. O-O {[%clk 0:02:58]}  Be7 {[%clk 0:02:54]} 7. Qe1 {[%clk 0:02:51]}  O-O {[%clk 0:02:53]} 8. Nbd2 {[%clk 0:02:51]}  Bh7 {[%clk 0:02:53]} 9. e4 {[%clk 0:02:50]}  c5 {[%clk 0:02:53]} 10. e5 {[%clk 0:02:51]}  Nfd7 {[%clk 0:02:50]} 11. c3 {[%clk 0:02:50]}  Nc6 {[%clk 0:02:49]} 12. Qe2 {[%clk 0:02:46]}  b5 {[%clk 0:02:48]} 13. d4 {[%clk 0:02:41]}  cxd4 {[%clk 0:02:38]} 14. Nxd4 {[%clk 0:02:40]}  Nxd4 {[%clk 0:02:32]} 15. cxd4 {[%clk 0:02:39]}  b4 {[%clk 0:02:25]} 16. g4 {[%clk 0:02:26]}  Rc8 {[%clk 0:02:20]} 17. f5 {[%clk 0:02:25]}  Rc2 {[%clk 0:02:03]} 18. Qd3 {[%clk 0:02:22]}  Qc7 {[%clk 0:01:58]} 19. Nb3 {[%clk 0:02:19]}  Rc8 {[%clk 0:01:40]} 20. Kh1 {[%clk 0:02:05]}  Qc4 {[%clk 0:01:13]} 21. Qh3 {[%clk 0:01:44]}  exf5 {[%clk 0:00:33]} 22. gxf5 {[%clk 0:01:40]}  Nf8 {[%clk 0:00:33]} 23. f6 {[%clk 0:01:36]}  Bd8 {[%clk 0:00:31]} 24. Bxh6 {[%clk 0:01:26]}  Rxg2 {[%clk 0:00:30]} 25. Qxg2 {[%clk 0:01:20]}  Be4 {[%clk 0:00:28]} 26. Rf3 {[%clk 0:01:21]}  Ng6 {[%clk 0:00:26]} 27. Be3 {[%clk 0:01:10]}  gxf6 {[%clk 0:00:23]} 28. exf6 {[%clk 0:01:09]}  Bxf6 {[%clk 0:00:24]} 29. Raf1 {[%clk 0:00:57]}  Bg7 {[%clk 0:00:23]} 30. Kg1 {[%clk 0:00:52]}  Bxf3 {[%clk 0:00:23]} 31. Qxf3 {[%clk 0:00:52]}  Qc7 {[%clk 0:00:21]} 32. Nc5 {[%clk 0:00:49]}  Re8 {[%clk 0:00:20]} 33. Nd3 {[%clk 0:00:48]}  Qe7 {[%clk 0:00:20]} 34. Bf2 {[%clk 0:00:43]}  Qe4 {[%clk 0:00:20]} 35. Qxe4 {[%clk 0:00:39]}  dxe4 {[%clk 0:00:20]} 36. Nxb4 {[%clk 0:00:39]}  e3 {[%clk 0:00:20]} 37. Bg3 {[%clk 0:00:40]}  Bxd4 {[%clk 0:00:20]} 38. Kg2 {[%clk 0:00:34]}  Bxb2 {[%clk 0:00:19]} 39. Nd5 {[%clk 0:00:34]}  Bd4 {[%clk 0:00:15]} 40. Kf3 {[%clk 0:00:29]}  Ne5+ {[%clk 0:00:13]} 41. Bxe5 {[%clk 0:00:29]}  Rxe5 {[%clk 0:00:14]} 42. Nf6+ {[%clk 0:00:28]}  Kg7 {[%clk 0:00:14]} 43. Ng4 {[%clk 0:00:29]}  Re6 {[%clk 0:00:13]} 44. Re1 {[%clk 0:00:29]}  Ra6 {[%clk 0:00:12]} 45. Re2 {[%clk 0:00:29]}  Ra3 {[%clk 0:00:11]} 46. Rg2 {[%clk 0:00:27]}  Kf8 {[%clk 0:00:11]} 47. Rc2 {[%clk 0:00:25]}  Bb6 {[%clk 0:00:11]} 48. Ke2 {[%clk 0:00:25]}  Ke7 {[%clk 0:00:11]} 49. Ne5 {[%clk 0:00:25]}  Ke6 {[%clk 0:00:11]} 50. Nc4 {[%clk 0:00:25]}  Ra6 {[%clk 0:00:10]} 51. Nxe3 {[%clk 0:00:24]}  Bxe3 {[%clk 0:00:09]} 52. Kxe3 {[%clk 0:00:24]}  Ra3+ {[%clk 0:00:09]} 53. Ke4 {[%clk 0:00:24]}  f5+ {[%clk 0:00:10]} 54. Kf4 {[%clk 0:00:25]}  Ra4+ {[%clk 0:00:10]} 55. Kf3 {[%clk 0:00:25]}  Kf6 {[%clk 0:00:10]} 56. Rg2 {[%clk 0:00:20]}  Ra3+ {[%clk 0:00:09]} 57. Kf4 {[%clk 0:00:21]}  Ra4+ {[%clk 0:00:10]} 58. Kf3 {[%clk 0:00:21]}  Ke5 {[%clk 0:00:11]} 59. Re2+ {[%clk 0:00:21]}  Kd5 {[%clk 0:00:11]} 60. Rd2+ {[%clk 0:00:19]}  Ke5 {[%clk 0:00:11]} 61. Re2+ {[%clk 0:00:19]}  Kf6 {[%clk 0:00:12]} 62. Rg2 {[%clk 0:00:19]} 1/2-1/2


[Site "https://www.chess.com"]